Cogmind - Beta 16.1 @@@ ROGUE MODE // 2026.04.20 @ 20:28:30 Player: SunShine214 Result: Destroyed by IW-C64(R) with Subdweller Shrapnel Launcher Performance ------------- Evolutions (0) 0 Regions Visited (2) 400 Robots Destroyed (31) 155 Value Destroyed (693) 693 Prototype IDs (3) 60 Alien Tech Used (0) 0 Bonus (0) 0 TOTAL SCORE: 1308 Bonus ------- None Cogmind --------- Core Integrity 0/250 Matter 300/300 Energy 100/100 System Corruption 0% Temperature Cool (0) Movement Core (450) Ox8 Location -10/Subcaves Parts ------- > --- POWER (1) -------- (None) > --- PROPULSION (2) --- (None) > --- UTILITY (2) ------ Large Storage Unit Sensor Array > --- WEAPON (2) ------- Beam Cannon Makeshift Sword > --- INVENTORY (15) --- Light Ion Engine Arachnoskeleton Flight Unit Flight Unit Large Storage Unit Signal Interpreter Seismic Detector Mining Laser Makeshift Hammer Peak State ------------ > --- POWER ------------ Light Nuclear Core > --- PROPULSION ------- Light Treads Light Treads > --- UTILITY ---------- Large Storage Unit Sensor Array > --- WEAPON ----------- Beam Cannon Makeshift Sword > --- INVENTORY -------- Light Ion Engine Light Treads Arachnoskeleton Flight Unit Flight Unit Large Storage Unit Signal Interpreter Seismic Detector Subdweller Beam Cannon Mining Laser [Rating: 15] Favorites ----------- Power Light Nuclear Core Engine Light Ion Engine Power Core Light Nuclear Core Propulsion Light Treads Treads Light Treads Utility Large Storage Unit Device Seismic Detector Storage Large Storage Unit Weapon Beam Cannon Energy Gun Medium Laser Energy Cannon Beam Cannon Ballistic Gun Assault Rifle Special Weapon Mining Laser Slashing Weapon Makeshift Sword Build | -11 -10 -10 ------- Run | Yrd Mat Sub Slots Evolved . | . . . Power . | . . . Propulsion . | . . . Utility . | . . . Weapon . | . . . Parts Attached 17 | 8 5 4 Power 2 | 1 1 . Engine 1 | 1 . . Core 1 | . 1 . Reactor . | . . . Propulsion 4 | 2 1 1 Treads 4 | 2 1 1 Leg . | . . . Wheel . | . . . Hover . | . . . Flight . | . . . Utility 4 | 2 1 1 Device 2 | 1 . 1 Storage 2 | 1 1 . Processor . | . . . Hackware . | . . . Protection . | . . . Artifact . | . . . Weapon 7 | 3 2 2 Energy Gun 1 | 1 . . Energy Cannon 2 | . 1 1 Ballistic Gun 2 | 2 . . Ballistic Cannon . | . . . Launcher . | . . . Special Weapon 1 | . 1 . Impact Weapon . | . . . Slashing Weapon 1 | . . 1 Piercing Weapon . | . . . Special Melee Weapon . | . . . Unidentified Prototypes . | . . . Parts Lost 6 | . . 6 Power 1 | . . 1 Propulsion 4 | . . 4 Utility . | . . . Weapon 1 | . . 1 Highest Loss Streak 2 | . . 2 To Critical Strikes . | . . . Average Backups 6 | . 5 9 Power . | . . 1 Propulsion 2 | . 2 3 Utility 2 | . 1 3 Weapon 1 | . 1 1 Tool/Special . | . . . Unused Backups 6 | . . 6 Power . | . . . Propulsion 3 | . . 3 Utility 2 | . . 2 Weapon 1 | . . 1 Tool/Special . | . . . Average Slot Usage (%) 99 | . 100 98 Engine 4 | . 7 . Core 9 | . 6 14 Treads 27 | . 28 26 Device 14 | . 14 14 Storage 14 | . 14 14 Energy Gun 3 | . 6 . Energy Cannon 11 | . 7 16 Ballistic Gun 7 | . 13 1 Slashing Weapon 4 | . . 10 Peak Build Rating 15 | 7 9 15 Average Rating 10 | 5 7 13 On Entrance 5 | . 7 9 Avg Prop Armor Cover (%) . | . . . Naked Turns . | . . . Heaviest Build 37 | 13 31 37 Greatest Support 40 | 40 40 40 Greatest Overweight (x) 1 | . . 1 Average Overweight (x) . | . . . Largest Inventory Capacity 15 | 8 15 15 Average Capacity 13 | 7 12 15 Most Carried 13 | 1 9 13 Average Carried 7 | . 5 11 Final Capacity 15 | 8 15 15 Final Carried 11 | 1 9 11 Class Distribution -------------------- 96% | Mutant 3% | Scavenger-Mutant Dominant Class ---------------- Mutant | -10/Materials Mutant | -10/Subcaves Resources | -11 -10 -10 ----------- Run | Yrd Mat Sub Matter Collected 594 | 283 261 50 Remotely . | . . . Salvage Created 1064 | 150 559 355 Parts 54 | 10 31 13 Haulers Intercepted 1 | . 1 . Recyclers Shooed 1 | 1 . . Parts Field Recycled . | . . . Retrieved Matter . | . . . Parts Self-Destructed 2 | . . 2 Prevented . | . . . Parts Restored . | . . . Kills | -11 -10 -10 ------- Run | Yrd Mat Sub Combat Hostiles Destroyed 20 | . 13 7 Guns 8 | . 8 . Cannons 12 | . 5 7 Classes Destroyed 9 | 3 4 2 Worker 3 | 1 2 . Tunneler 3 | 3 . . Hauler 1 | . 1 . Recycler 1 | 1 . . Watcher 3 | . 3 . Swarmer 6 | . 6 . Grunt 8 | . 7 1 Sentry 1 | . . 1 Subdweller 5 | . . 5 Best Kill Streak 4 | 2 4 3 Combat Bots Only 4 | . 4 3 Max Kills in Single Turn 1 | 1 1 1 Gunslinging . | . . . Exploded . | . . . Melee . | . . . Uniques/NPCs Destroyed . | . . . Combat | -11 -10 -10 -------- Run | Yrd Mat Sub Hostile Shots Fired 111 | . 63 48 Missed 33 | . 15 18 Hits 78 | . 48 30 Projectile 78 | . 48 30 AOE 2 | . . 2 Critical Strikes 1 | . 1 . Damage Taken 1209 | . 464 745 Core 257 | . 100 157 Absorbed by Shields . | . . . Core Remaining (%) 100 | 100 . . Volleys Fired 110 | 10 61 39 Largest 2 | 2 2 2 Hottest 160 | 70 160 140 Shots Fired 194 | 20 120 54 Gun 118 | 20 96 2 Cannon 74 | . 22 52 Launcher . | . . . Special 2 | . 2 . Kinetic 71 | 10 59 2 Thermal 123 | 10 61 52 Explosive . | . . . Electromagnetic . | . . . Robot Hit Streak 14 | 11 8 14 Robot Miss Streak 8 | 1 8 3 Penetration Max . | . . . Secondary Targets . | . . . Shots Hit Robots 102 | 14 58 30 Core Hits 44 | 6 25 13 Critical Kills 1 | 1 . . Critical Parts Destroyed . | . . . Critical Strikes 5 | 3 2 . Burn 4 | 2 2 . Destroy 1 | 1 . . Melee Attacks 8 | . . 8 Impact . | . . . Slashing 8 | . . 8 Piercing . | . . . Sneak Attacks . | . . . Combat Hostiles . | . . . Follow-up Attacks . | . . . Damage Inflicted 1600 | 175 838 587 Guns 803 | 175 615 13 Cannons 748 | . 174 574 Explosions . | . . . Melee . | . . . Ramming 49 | . 49 . Kinetic 492 | 74 405 13 Thermal 1059 | 101 384 574 Explosive . | . . . Electromagnetic . | . . . Impact . | . . . Slashing . | . . . Piercing . | . . . Highest Corruption . | . . . Average Corruption . | . . . Corruption Purged . | . . . Corruption Blocked . | . . . Overload Shots . | . . . Overflow Damage 2 | . . 2 Projectiles 2 | . . 2 Explosions . | . . . Melee . | . . . Knockbacks . | . . . Impact . | . . . Kinetic . | . . . Secondary . | . . . Self-Inflicted Damage . | . . . Shots . | . . . Rammed 5 | . 5 . Targets Rammed 5 | . 5 . Kicked . | . . . Crushed . | . . . Highest Temperature 204 | 9 204 198 Average Temperature 56 | 6 51 83 Received Heat Transfer 348 | . 138 210 Effects 1 | . 1 . Interference 1 | . 1 . Siege Activations . | . . . Martial Activations . | . . . Shielding Activations . | . . . Robots Disrupted . | . . . Combat Hostiles . | . . . Robots Corrupted . | . . . Combat Hostiles . | . . . Parts Fried . | . . . Impact Corruptions . | . . . Robots Melted . | . . . Combat Hostiles . | . . . Parts Melted 6 | . 3 3 Heat Transferred 2701 | 444 1147 1110 Parts Sabotaged . | . . . Parts Stolen . | . . . Parts Stripped . | . . . Power Chain Reactions . | . . . Alert | -11 -10 -10 ------- Run | Yrd Mat Sub Maximum Alert Level . | . . . Low Security (%) 100 | 100 100 . Level 1 . | . . . Level 2 . | . . . Level 3 . | . . . Level 4 . | . . . Level 5 . | . . . High Security . | . . . Max Security . | . . . Peak Influence 159 | 10 159 . Initial . | . . . Average 71 | 1 78 . Influence Increases 517 | 25 437 55 Destroy 0b10 Robot/C 300 | . 260 40 Destroy 0b10 Robot/NC 55 | 25 30 . Destroy Leader 68 | . 68 . Successful Hack 19 | . 19 . Disable Machine 15 | . 15 . Lose Combat Pursuer 60 | . 45 15 Influence Decreases 517 | 25 339 153 Entered New Map 48 | . . 48 Time Decay 444 | 25 339 80 Lost Part 25 | . . 25 Squads Dispatched 2 | . 2 . Investigation 1 | . 1 . Extermination . | . . . Reinforcement 1 | . 1 . Assault . | . . . Garrison . | . . . Intercept . | . . . Searches Triggered . | . . . Construction Impeded . | . . . Haulers Reinforced . | . . . Active Scanning Responses . | . . . Cargo Convoy Interrupts . | . . . Stealth | -11 -10 -10 --------- Run | Yrd Mat Sub Distress Signals 2 | . 2 . Communications Jammed . | . . . Distress Signals . | . . . Times Spotted 32 | . 23 9 Peak Tracking Total 4 | . 4 3 Tactical Retreats 3 | . 2 1 Traps | -11 -10 -10 ------- Run | Yrd Mat Sub Traps Triggered 1 | . 1 . Indirectly . | . . . Trap Hack Attempts . | . . . Triggered . | . . . Disarmed . | . . . Reprogrammed . | . . . Reused . | . . . Traps Extracted . | . . . Installed . | . . . Triggered . | . . . Machines | -11 -10 -10 ---------- Run | Yrd Mat Sub Machines Disabled 2 | . 2 . Max in Single Turn 1 | . 1 . Machines Repaired . | . . . Machines Dismantled . | . . . Machines Sabotaged . | . . . Overloaded Fab Kills . | . . . Hacking | -11 -10 -10 --------- Run | Yrd Mat Sub Machines Accessed 6 | . 5 1 Terminals 4 | . 4 . Fabricators . | . . . Repair Stations . | . . . Recycling Units 1 | . 1 . Scanalyzers . | . . . Garrison Access . | . . . Total Hacks 14 | . 9 5 Successful 8 | . 3 5 Failed 6 | . 6 . Catastrophic 2 | . 2 . Database Lockouts . | . . . Manual 3 | . 3 . Terminals 8 | . 8 . Fabricators . | . . . Repair Stations . | . . . Recycling Units 1 | . 1 . Scanalyzers . | . . . Garrison Access . | . . . Terminal Hacks 7 | . 2 5 Record 5 | . . 5 Prototype ID Bank 1 | . 1 . Hauler Manifests 1 | . 1 . Fabricator Hacks . | . . . Repair Station Hacks . | . . . Recycling Unit Hacks 1 | . 1 . Retrieve Components 1 | . 1 . Scanalyzer . | . . . Garrison Access Hacks . | . . . Unauthorized Hacks . | . . . Terminals . | . . . Fabricators . | . . . Repair Stations . | . . . Recycling Units . | . . . Scanalyzers . | . . . Garrison Access . | . . . Data Cores Recovered . | . . . Used . | . . . Hacking Detections 3 | . 3 . Full Trace Events . | . . . Feedback Events . | . . . Feedback Blocked . | . . . Robot Schematics Acquired . | . . . Robots Built . | . . . Authchips . | . . . Time . | . . . Total Robot Build Rating . | . . . Part Schematics Acquired . | . . . Parts Built . | . . . Authchips . | . . . Time . | . . . Total Part Build Rating . | . . . Part Studies Acquired . | . . . Parts Repaired . | . . . Time . | . . . Parts Recycled . | . . . Recycled Matter . | . . . Retrieved Matter . | . . . Retrieved Components 9 | . 9 . Parts Scanalyzed . | . . . Part Schematics Acquired . | . . . Parts Damaged . | . . . Bothacking | -11 -10 -10 ------------ Run | Yrd Mat Sub Used RIF Installer . | . . . Robots Hacked . | . . . Non-combat . | . . . Combat . | . . . Robot Hacks Applied . | . . . Relay Couplers Released . | . . . Fabnet Peak Effective % . | . . . Robots Rewired . | . . . Allies Hacked . | . . . Hacks Repelled . | . . . Allies | -11 -10 -10 -------- Run | Yrd Mat Sub Total Allies . | . . . Largest Group . | . . . Highest-Rated Group . | . . . Highest-Rated Ally . | . . . Total Orders . | . . . Ally Attacks . | . . . Total Damage . | . . . Kills . | . . . Allies Corrupted . | . . . Allies Melted . | . . . Intel | -11 -10 -10 ------- Run | Yrd Mat Sub Active Infowar (turns) 2499 | 72 1315 1112 Sensors 941 | . . 941 Seismic 1558 | 72 1315 171 Robot Analysis Total . | . . . Derelict Logs Recovered 1 | . . 1 Drone Launches . | . . . Drone Recoveries . | . . . Exploration | -11 -10 -10 ------------- Run | Yrd Mat Sub Turns Passed 2581 | 139 1330 1112 Spaces Moved 1251 | 62 607 582 Core 2 | 2 . . Treads 1249 | 60 607 582 Legs . | . . . Wheels . | . . . Hover . | . . . Flight . | . . . Fastest Speed 50 | 50 160 160 Average Speed 162 | 156 160 165 Slowest Speed 240 | 160 160 240 Overloaded Moves . | . . . Propulsion Burnouts . | . . . Robots Hopped . | . . . Potential Cave-ins . | . . . Cave-ins Triggered . | . . . Exploration Rate (%) 41 | 3 84 36 Regions Visited 2 Branch Regions 1 Pre-discovered Areas 2 | . . 2 Known Exits Taken . | . . . Unknown Exits Taken 2 | 1 1 . Scrap Searched . | . . . Spaces Dug 2 | . . 2 Terrain Destroyed 8 | . . 8 Melee . | . . . Projectile 8 | . . 8 AOE . | . . . Terrain Rammed . | . . . Walls Destroyed . | . . . Machines Disabled . | . . . Actions | -11 -10 -10 --------- Run | Yrd Mat Sub Total 1587 | 80 836 671 Wait 182 | . 150 32 Move 1249 | 61 606 582 Hop . | . . . Pick Up 11 | 1 7 3 Fast Attach 8 | 7 . 1 Attach 3 | . . 3 Detach 1 | . . 1 Swap 8 | 1 6 1 Drop 2 | . 1 1 Fire 110 | 10 61 39 Melee 8 | . . 8 Ram . | . . . Kick . | . . . Crush 5 | . 5 . Escape Stasis . | . . . Rewire . | . . . Trap . | . . . Miscellaneous . | . . . Route ------- -11/Scrapyard -10/Materials (discovered 5 exits: [*Mat x2] / [*Min x2] / *Sub) -10/Subcaves (discovered 2 exits: [*Mat] / *Rec) History --------- Turn | Location | Event 9 | -11/Scrapyard | Discovered new exit (range 16) 140 | -11/Scrapyard | Entered Materials 312 | -10/Materials | Build established: Mutant 356 | -10/Materials | Discovered new exit (range 12) 487 | -10/Materials | Discovered new exit (range 10) 564 | -10/Materials | Discovered new exit (range 15) 998 | -10/Materials | Discovered new exit (range 6) 1124 | -10/Materials | Discovered new exit (range 8) 1470 | -10/Materials | Entered Subcaves 1471 | -10/Subcaves | Approached by a straggling Scientist 1479 | -10/Subcaves | Shifting Twisted Machinery released Mak. Sword 1487 | -10/Subcaves | Shifting Twisted Machinery released Barrage Gun 1540 | -10/Subcaves | A Subdweller sparked back to life 1540 | -10/Subcaves | A Subdweller sparked back to life 1552 | -10/Subcaves | Core integrity fell below 50% 1584 | -10/Subcaves | Found Prototype Leg 1616 | -10/Subcaves | Learned location of Zion (-7) 1616 | -10/Subcaves | Met a Zionite searching for "candidates" 1698 | -10/Subcaves | Visited Clippyterm 1703 | -10/Subcaves | Identified exit to Recycling 1703 | -10/Subcaves | Learned location of Extension (-6) 1738 | -10/Subcaves | Learned location of 2 exits from Materials 1874 | -10/Subcaves | Discovered new exit (range 12) 2495 | -10/Subcaves | A swath of the cavern ceiling suddenly collapsed 2581 | -10/Subcaves | Core integrity fell below 20% 2582 | -10/Subcaves | Destroyed by IW-C64(R) with Subdweller Shrapnel Launcher Last Messages --------------- here" 02240_ Acquired 10 matter. 6T-WVT(c): "I think it's somewhere south of here" 02455_ Subatomizers dissect the Sub. Power Source. 02466_ Subatomizers dissect the Sub. Power Source, destroying it. 02478_ Subatomizers dissect the Sub. Laser. 02481_ M3-1LH(R) affixes Scrap Shield Fragment to Scrap Shield. 02486_ Lgt. Treads destroyed. 02488_ Subatomizers dissect the Sub. Laser. 02489_ M3-1LH(R) destroyed. 6T-WVT(c): "I think it's somewhere south of here" A swath of the cavern ceiling suddenly collapses. 02582_ Lgt. Treads destroyed. 02582_ Lgt. Nuclear Core destroyed. Map ----- +----------------------------------------------------+ | ?????????????????? #????????? | | ????????????????? # #????????? | | ?????????????????# ## ####### ## #???????? | | ?????????????????##??##??????# ###### ##???????? | | ?????????????????????????????# ###### #???????? | | ?????????????????????????????#"""""### #???????? | | ?????????????????????????????##""###?# ##???????? | | ?????????????????????????????##"" #"# #????????? | | ??????????????????????????????#### #"# ##????????? | | ????????????????????????????????""#"####?????????? | | ???????????????????????????????#"#"#""##?????????? | | ???????????????????????????????##""#"#"#?????????? | | ????????????????????????????????#####"##?????????? | | ??????????????????????????????????#""#"#?????????? | | ??????????????????????????????????###""#?????????? | | ???????????????????????????????######""##????????? | | ???????????????????????????????# ##;;#"#????????? | | ?????????????????????????????### ##;;"""#????????? | | ?????????????????????####????# ;##"###????????? | | ???????????????????###""#?##### ####??????????? | | ???????????????# ###"" ;## ; # # #?????????? | | ???????????????# " ;; # #??????????? | | ????????????????# R ; #??????????? | | ????????????????# ### ## ##??????????? | | ?????????????????????#; ;# ####???????????? | | ?????????????????????##;;@;;;; #??????????????? | | ??????????????????????##; ## #??????????????? | | ??????????????????????#>####### ##??????????????? | | ?????????????????????"" ??????# #???????????????? | | ???????????????????? "???????# ???????????????? | | ???????????????????" ???????? ???????????????? | | ??????????????????# s????????? ??????????????? | | ??????????????????# ????????? ### ??????????????? | | ??????????????????#"??????????#???#??????????????? | | ??????????????????#??????????????????????????????? | | ?????????????????????????????????????????????????? | | ?????????????????????????????????????????????????? | | ?????????????????????????????????????????????????? | | ?????????????????????????????????????????????????? | | ?????????????????????????????????????????????????? | | ?????????????????????????????????????????????????? | | ?????????????????????????????????????????????????? | | ?????????????????????????????????????????????????? | | ?????????????????????????????????????????????????? | | ?????????????????????????????????????????????????? | | ?????????????????????????????????????????????????? | | ?????????????????????????????????????????????????? | | ?????????????????????????????????????????????????? | | ?????????????????????????????????????????????????? | | ?????????????????????????????????????????????????? | +----------------------------------------------------+ Best States ------------- Heat Dissipation 25 Energy Generation 14 Energy Capacity 160 Matter Stores 300 Matter Capacity 300 Sight Range 16 Robot Scan Range 14 Terrain Scan Density 10 Evasion (%) 40 Recoil Reduction 2 Item Schematics ----------------- None Robot Schematics ------------------ None Fabricated ------------ Nothing Repaired ---------- Nothing Studied --------- None Alien Tech Used ----------------- None Achievements -------------- None Challenges ------------ None Game ------ Seed SpreadWeaponNullifier Manual? 0 Play Time 00:12:51 Cumulative 147.3 hours Start 2026.04.20 @ 20:12:33 End 2026.04.20 @ 20:28:30 Sessions 1 Manual Loads 0 Difficulty Rogue Special Mode None Game No. 226 Rogue 226 Adventurer 0 Explorer 0 Win Type - Total 1 Types 1/0/0/0/0/0/0/0/0/0 Lore% 52 Gallery% 55 Achievement% 42 Wizard Run 0 Options --------- Layout 1 ASCII 0 Keyboard 1 Movement Arrows Keybinds 0 Fullscreen 1 Font 24/Smallcaps Map View 50x35 Zoom Use 0% Tactical HUD 1 Map Filters NONE Filters NONE Steam 1 RUN: 2b50233a-82c0-4970-a775-9069ec219f67